bitfinex/quotes_ETHUSD_20250129
["timestamp","ask_amount","ask_price","bid_price","bid_amount"]
[1738142134577,3.18383,3140.9,3140.4,3.9788]
[1738142134910,3.18364,3141.1,3140.4,5.10057018]
[1738142135112,3.18382,3140.9,3140.4,5.068729]
[1738142135319,6.3677,3140.9,3140.4,5.068729]
[1738142135485,3.18382,3140.9,3140.4,0.7946]
[1738142135691,0.6263346,3140.8,3140.4,0.7946]
[1738142136109,3.18402,3140.7,3140.4,0.7946]
[1738142136303,3.1842,3140.5,3140.1,9.7233]
[1738142136503,3.184,3140.7,3140.1,8.91]
[1738142136813,3.18451,3140.2,3140.1,8.91]
[1738142137117,3.18461,3140.1,3140.0,0.12039509]
[1738142137976,3.18461,3140.1,3140.0,0.25192493]
[1738142138704,3.18451,3140.2,3140.0,0.25192493]
[1738142139084,3.18432,3140.4,3140.0,0.25192493]
[1738142139320,6.36871,3140.4,3140.0,0.25192493]
[1738142139624,3.18442,3140.3,3140.0,0.25192493]
[1738142140817,3.18442,3140.3,3140.1,0.7509]
[1738142141019,3.18421,3140.5,3140.1,0.88242929]
[1738142141230,3.18404,3140.7,3140.2,3.18448]
[1738142141380,3.18404,3140.7,3140.2,3.31630774]
[1738142141584,6.18381,3140.9,3140.3,3.18432]
[1738142141803,6.18381,3140.9,3140.4,0.13182664]
[1738142142214,3.1839,3140.8,3140.4,0.13182664]
[1738142143609,3.184,3140.7,3140.4,0.13182664]
[1738142143785,6.36771,3140.9,3140.4,0.13182664]
[1738142143985,3.18381,3140.9,3140.4,0.13182664]
[1738142144224,3.18381,3140.9,3140.4,0.58322833]
[1738142145092,3.18375,3141.0,3140.6,0.77]
[1738142145502,3.18375,3141.0,3140.7,0.1323136]
[1738142146329,3.1839,3140.8,3140.7,0.1323136]
[1738142146893,3.1839,3140.8,3140.5,3.736]
[1738142147100,3.1839,3140.8,3140.7,0.13217561]
[1738142147318,3.1839,3140.8,3140.5,3.736]
[1738142147506,3.18375,3141.0,3140.7,0.13217561]
[1738142147835,3.18385,3140.9,3140.8,0.13217506]
[1738142148034,3.18403,3140.7,3140.5,3.186]
[1738142148332,3.18403,3140.7,3140.4,0.7632]
[1738142148929,3.18403,3140.7,3140.3,8.91]
[1738142149144,3.18421,3140.5,3140.3,8.91]
[1738142149699,3.18403,3140.7,3140.3,8.91]
[1738142149901,0.8043,3140.8,3140.3,8.91]
[1738142150119,3.18418,3140.6,3140.3,8.91]
[1738142151309,3.1843,3140.5,3140.3,8.91]
[1738142151747,3.1843,3140.4,3140.3,8.91]
[1738142152730,3.18453,3140.2,3140.0,0.12039509]
[1738142153149,3.18453,3140.2,3140.1,0.13198915]
[1738142154847,6.36867,3140.4,3140.1,0.13198915]
[1738142155051,3.18442,3140.3,3140.1,0.13198915]
[1738142159318,3.18451,3140.2,3140.1,0.13198915]
[1738142161929,3.96111,3140.3,3140.1,0.13198915]
[1738142164462,7.14559,3140.3,3140.1,0.13198915]
[1738142164637,3.96111,3140.3,3140.1,0.13198915]
[1738142165026,0.8274,3140.8,3140.1,0.13198915]
[1738142165337,3.83585236,3140.9,3140.4,3.18424]
[1738142165652,3.83585236,3140.9,3140.5,0.13260223]
[1738142166459,0.65199236,3140.9,3140.5,0.13260223]
[1738142166755,0.65199236,3140.9,3140.5,3.31677223]
[1738142166955,0.65199236,3140.9,3140.5,6.50092223]
[1738142167165,0.65199236,3140.9,3140.6,3.95734]
[1738142167457,0.65199236,3140.9,3140.7,0.13238835]
[1738142168363,6.36787,3140.8,3140.3,6.37035]
[1738142168559,3.9464,3140.8,3140.4,0.55]
[1738142170162,3.18411,3140.6,3140.3,3.186]
[1738142170363,3.18411,3140.6,3140.1,3.18459]
[1738142170669,3.18439,3140.4,3140.0,0.88559509]
[1738142170824,3.18441,3140.3,3140.0,0.12039509]
[1738142171422,0.8114,3140.2,3140.0,0.12039509]
[1738142171642,3.18461,3140.1,3140.0,0.12039509]
[1738142171845,6.902652,3140.1,3140.0,0.12039509]
[1738142172044,7.674652,3140.1,3140.0,0.12039509]
[1738142173564,10.13267053,3140.1,3140.0,0.12039509]
[1738142176561,10.77585983,3140.1,3140.0,0.12039509]
[1738142181951,3.18491,3139.8,3139.7,0.0400767]
[1738142182174,10.48894053,3139.8,3139.7,0.0400767]
[1738142183288,8.030922,3139.8,3139.7,0.0400767]
[1738142183491,7.01131,3139.8,3139.7,0.0400767]
[1738142186100,6.18491,3139.8,3139.7,0.0400767]
[1738142186461,6.98671,3139.8,3139.7,0.0400767]
[1738142187095,9.44472853,3139.8,3139.7,0.0400767]
[1738142187662,9.44472853,3139.8,3139.7,6.7e-06]
[1738142188001,10.87393714,3139.8,3139.7,6.7e-06]
[1738142188303,10.97393714,3139.8,3139.7,6.7e-06]
[1738142189702,10.87393714,3139.8,3139.7,6.7e-06]
[1738142201624,10.97393714,3139.8,3139.7,6.7e-06]
[1738142201933,10.87393714,3139.8,3139.7,6.7e-06]
[1738142202218,3.18491,3139.8,3139.7,6.7e-06]
[1738142202840,3.18491,3139.8,3139.7,0.92943182]
[1738142202985,6.18491,3139.8,3139.7,6.7e-06]
[1738142203187,6.41952853,3139.8,3139.7,6.7e-06]
[1738142203587,9.41952853,3139.8,3139.7,6.7e-06]
[1738142203787,10.8919993,3139.8,3139.7,6.7e-06]
[1738142204337,13.35001783,3139.8,3139.7,6.7e-06]
[1738142205102,10.8919993,3139.8,3139.7,6.7e-06]
[1738142207106,3.18613,3138.6,3138.4,0.8223]
[1738142207307,3.18613,3138.6,3138.5,0.1257072]
[1738142207517,3.18613,3138.6,3138.4,0.8223]
[1738142207756,6.37234,3138.6,3138.4,0.8223]
[1738142208267,6.37235,3138.6,3138.4,0.8223]
[1738142208768,3.18623,3138.5,3138.4,0.8223]
[1738142211425,3.18623,3138.5,3138.4,0.94800775]
[1738142222438,3.18623,3138.5,3138.4,0.12570775]
[1738142222770,3.1864,3138.4,3138.2,0.7719]
[1738142222972,1.43496577,3138.8,3138.4,0.12578839]
[1738142222973,3.0,3138.7,3138.4,0.12578839]
[1738142223278,3.0,3138.7,3138.5,0.7719]
[1738142223581,0.64446577,3138.8,3138.5,0.89803906]
[1738142223752,3.18579,3139.0,3138.6,0.40843591]
[1738142224075,3.18585,3138.9,3138.7,0.92779189]
[1738142225261,0.63068522,3138.8,3138.7,1.47779189]
[1738142225869,0.63068522,3138.8,3138.7,1.43439189]
[1738142226440,0.63068522,3138.8,3138.7,0.88439189]
[1738142226744,3.81661522,3138.8,3138.7,0.88439189]
[1738142227341,4.51686674,3138.8,3138.7,0.12609189]
[1738142227680,3.18623,3138.5,3138.4,0.7927]
[1738142228041,3.18623,3138.5,3138.4,0.91844805]
[1738142231292,3.18613,3138.6,3138.4,0.91844805]
[1738142231969,6.18576,3139.0,3138.5,0.55]
[1738142232171,6.18576,3139.0,3138.7,0.7997]
[1738142232351,6.18576,3139.0,3138.8,0.12594738]
[1738142232553,3.18576,3139.0,3138.8,0.12594738]
[1738142232754,3.18576,3139.0,3138.9,0.12594682]
[1738142232952,3.18576,3139.0,3138.7,0.7997]
[1738142232953,3.18555,3139.2,3138.7,0.7997]
[1738142233168,3.18555,3139.2,3138.9,0.8008]
[1738142233489,6.37114,3139.2,3139.0,0.12594627]
[1738142233870,3.18562,3139.1,3139.0,0.12594627]
[1738142234992,3.18555,3139.2,3139.0,0.12594627]
[1738142235193,3.18555,3139.2,3138.9,0.8008]
[1738142235559,3.0,3139.3,3139.0,0.12570444]
[1738142235888,0.62466112,3139.5,3139.2,0.7573]
[1738142236295,3.80988112,3139.5,3139.2,0.7573]
[1738142236614,3.1854,3139.4,3139.2,0.7573]
[1738142237512,3.62466112,3139.5,3139.3,0.12546674]
[1738142237657,3.80990112,3139.5,3139.3,0.12546674]
[1738142237863,3.80990112,3139.5,3139.2,0.7573]
[1738142238064,3.80990112,3139.5,3139.4,0.12528775]
[1738142238310,3.80990112,3139.5,3139.2,1.206601]
[1738142238311,3.80990112,3139.5,3139.3,0.1252883]
[1738142238463,3.80990112,3139.5,3139.4,0.12528775]
[1738142238811,0.62466112,3139.5,3139.2,1.206601]
[1738142239017,3.80989112,3139.5,3139.4,0.12523595]
[1738142239183,3.80989112,3139.5,3139.3,0.1252365]
[1738142239384,3.80989112,3139.5,3139.2,1.206601]
[1738142239567,3.80989112,3139.5,3139.3,0.12520772]
[1738142239913,0.62466112,3139.5,3139.4,0.8012]
[1738142240062,0.62466112,3139.5,3139.4,0.92640717]
[1738142241166,3.80988112,3139.5,3139.4,0.92640717]
[1738142243281,0.62466112,3139.5,3139.4,0.92640717]
[1738142244182,3.80988112,3139.5,3139.4,0.12520717]
[1738142244368,3.18533,3139.4,3139.1,0.8004]
[1738142244565,3.18533,3139.4,3139.2,0.12520828]
[1738142244883,3.18532,3139.4,3139.2,0.12520828]
[1738142247800,0.62466112,3139.5,3139.2,0.12520828]
[1738142247990,3.80989112,3139.5,3139.2,0.12520828]
[1738142249139,3.18535,3139.4,3139.2,0.12520828]
[1738142250017,0.62466112,3139.5,3139.2,0.12520828]
[1738142250693,3.80995112,3139.5,3139.2,0.12520828]
[1738142251423,3.80615027,3139.5,3139.2,0.12520828]
[1738142253737,3.80615027,3139.5,3139.2,0.53633511]
[1738142253738,0.62086027,3139.5,3139.2,0.53633511]
[1738142254815,6.36955,3140.0,3139.4,3.94571]
[1738142255133,3.18483,3139.9,3139.5,0.12474041]
[1738142255536,3.0,3139.9,3139.6,0.55]
[1738142255834,3.0,3139.9,3139.7,0.1247278]
[1738142256034,3.18475,3140.0,3139.7,0.51071758]
[1738142256238,3.18475,3140.0,3139.8,0.8212]
[1738142256650,3.18475,3140.0,3139.9,0.12469217]
[1738142258840,3.18511,3139.6,3139.5,0.7957]
[1738142260332,3.18514,3139.6,3139.1,0.7931]
[1738142260519,3.18522,3139.5,3139.2,0.397873]
[1738142261573,3.18514,3139.6,3139.2,0.397873]
[1738142261752,6.37036,3139.6,3139.2,0.397873]
[1738142261924,3.18524,3139.5,3139.2,0.397873]
[1738142264082,3.18514,3139.6,3139.1,0.7931]
[1738142264083,3.18541,3139.4,3139.1,0.7931]
[1738142264286,3.18557,3139.2,3138.8,0.7927]
[1738142265150,3.18557,3139.2,3138.9,0.55]
[1738142265585,3.18558,3139.2,3138.9,0.55]
[1738142265779,4.01018,3139.5,3138.9,0.55]
[1738142265985,3.18544,3139.3,3138.9,1.640269]
[1738142267000,0.65063928,3139.4,3138.9,1.640269]
[1738142267001,3.83597928,3139.4,3138.9,1.640269]
[1738142267300,3.83597928,3139.4,3139.0,0.7728]
[1738142268401,3.1855,3139.3,3139.0,0.7728]
[1738142271610,3.18534,3139.4,3139.0,0.7728]
[1738142271789,3.18524,3139.5,3139.0,1.223672]
[1738142272177,6.37055,3139.5,3139.0,1.223672]
[1738142272381,3.18524,3139.5,3139.0,1.223672]
[1738142272706,6.37055,3139.5,3139.0,1.223672]
[1738142272914,3.18532,3139.4,3139.0,0.7728]
[1738142273215,3.18543,3139.3,3139.1,0.12064319]
[1738142276213,3.18524,3139.5,3139.1,0.12064319]
[1738142279215,3.80971928,3139.7,3139.2,0.55]
[1738142279417,3.18484,3139.9,3139.4,0.55]
[1738142279581,3.18471,3140.0,3139.5,0.12062947]
[1738142279797,3.18517,3139.6,3139.0,9.6936]
[1738142280115,3.18517,3139.6,3139.1,3.30756838]
[1738142280116,3.18533,3139.4,3139.1,3.30756838]
[1738142280428,3.18542,3139.3,3139.1,0.12056838]
[1738142282396,3.18529,3139.5,3139.1,0.12056838]
[1738142284025,4.01448,3139.6,3139.1,0.12056838]
[1738142284781,0.8293,3139.6,3139.1,0.12056838]
[1738142285102,3.18534,3139.4,3139.1,0.12056838]
[1738142285717,3.18517,3139.6,3139.2,0.55]
[1738142286120,3.18517,3139.6,3139.3,0.12057305]
[1738142286555,3.18517,3139.6,3139.2,0.55]
[1738142286725,3.18495,3139.8,3139.4,0.95297249]
[1738142286885,3.18495,3139.8,3139.4,0.8324]
[1738142287090,3.18501,3139.7,3139.5,0.12057194]
[1738142287492,3.18495,3139.8,3139.5,0.12057194]
[1738142287819,3.18511,3139.6,3139.5,0.12057194]
[1738142288221,3.18563,3139.1,3138.8,0.7972]
[1738142288545,3.18572,3139.0,3138.9,0.12058101]
[1738142288826,3.18643,3138.3,3137.8,0.8151]
[1738142288998,3.18658,3138.2,3137.9,0.12059228]
[1738142289325,3.18658,3138.2,3138.0,0.63100433]
[1738142289629,3.18658,3138.2,3138.1,0.12059118]
[1738142289793,3.18635,3138.4,3138.1,0.12059118]
[1738142290537,3.18617,3138.6,3138.3,0.8186]
[1738142290894,3.18617,3138.6,3138.4,0.12115938]
[1738142291322,3.18623,3138.5,3138.4,0.12115938]
[1738142291562,3.18623,3138.5,3138.2,0.55]
[1738142291694,3.18623,3138.5,3138.4,0.12129758]
[1738142292094,3.18634,3138.4,3138.1,0.8186]
[1738142292297,3.18634,3138.4,3137.8,0.7688]
[1738142292514,3.18647,3138.3,3137.8,1.16976578]
[1738142292755,3.18634,3138.4,3137.9,0.55]
[1738142293437,3.18634,3138.4,3138.0,0.12047182]
[1738142294104,5.64465853,3138.1,3138.0,0.12047182]
[1738142294524,5.64465853,3138.1,3137.4,8.91]
[1738142294525,3.18704,3137.7,3137.4,8.91]
[1738142294845,3.96366,3138.0,3137.4,8.91]
[1738142295029,2.45801853,3138.4,3137.5,3.21903127]
[1738142295030,3.18655,3138.2,3137.5,3.21903127]
[1738142295206,0.7769,3138.3,3137.7,0.55]
[1738142295400,3.18706,3137.7,3137.4,9.6766]
[1738142295636,3.96385,3137.8,3137.4,8.91]
[1738142295637,3.18715,3137.6,3137.4,8.91]
[1738142295836,3.18732,3137.5,3137.2,0.7999]
[1738142296042,3.96388,3137.8,3137.2,0.7999]
[1738142296242,3.18682,3138.0,3137.3,0.55]
[1738142296439,3.18686,3137.9,3137.3,0.55]
[1738142296739,3.18686,3137.9,3137.3,1.00743219]
[1738142296944,0.7803,3138.1,3137.3,1.03930386]
[1738142297122,3.18657,3138.2,3137.7,0.7662]
[1738142297319,3.18657,3138.2,3137.8,0.55]
[1738142297826,6.37276,3138.4,3137.8,0.55]
[1738142298053,3.18646,3138.3,3137.8,0.55]
[1738142299138,3.18646,3138.3,3137.8,1.000333]
[1738142300141,3.18646,3138.3,3137.8,0.55]
[1738142301141,3.18644,3138.3,3137.8,0.55]
[1738142301338,3.18655,3138.2,3137.8,0.55]
[1738142301751,3.18667,3138.1,3137.8,0.55]
[1738142301970,3.18655,3138.2,3137.4,9.722]
[1738142301971,3.18681,3138.0,3137.4,9.722]
[1738142302164,3.18681,3138.0,3137.5,1.33668322]
[1738142302368,3.18681,3138.0,3137.6,0.55]
[1738142302954,3.1869,3137.9,3137.6,0.55]
[1738142303144,3.1869,3137.9,3137.7,0.10795355]
[1738142303347,3.18694,3137.8,3137.7,0.10795355]
[1738142303747,3.18684,3137.9,3137.7,0.10795355]
[1738142308696,3.18665,3138.1,3137.7,0.10795355]
[1738142308999,3.18676,3138.0,3137.7,0.10795355]
[1738142310102,3.18685,3137.9,3137.7,0.10795355]
[1738142310304,3.18694,3137.8,3137.7,0.10795355]
[1738142310601,3.97255,3137.9,3137.4,0.812]
[1738142310913,3.18711,3137.7,3137.5,0.10817929]
[1738142311267,3.18711,3137.7,3137.4,0.812]
[1738142311607,3.18711,3137.7,3137.5,0.10817929]
[1738142311785,3.18714,3137.6,3137.2,0.8258]
[1738142311991,3.18714,3137.6,3137.2,2.11865]
[1738142312194,3.18714,3137.6,3137.3,0.10818039]
[1738142314327,3.18694,3137.8,3137.3,0.10818039]
[1738142314918,3.1871,3137.7,3137.3,0.10818039]
[1738142315607,3.18676,3138.0,3137.4,3.73725]
[1738142315911,3.18676,3138.0,3137.6,0.55]
[1738142316282,3.18676,3138.0,3137.7,0.10835675]
[1738142317176,3.18684,3137.9,3137.7,0.10835675]
[1738142318079,3.18694,3137.8,3137.7,0.10835675]
[1738142318611,0.7505,3137.8,3137.3,0.55]
[1738142318777,3.18709,3137.7,3137.4,0.1084045]
[1738142319207,3.18716,3137.6,3137.4,0.1084045]
[1738142323089,3.18725,3137.5,3137.4,0.1084045]
[1738142323926,3.18725,3137.5,3137.1,0.555]
[1738142324146,3.18725,3137.5,3137.4,0.1084045]
[1738142324326,3.18725,3137.5,3137.1,0.555]
[1738142324493,3.18725,3137.5,3137.4,0.1084045]
[1738142324688,3.18725,3137.5,3137.1,0.555]
[1738142324888,3.18725,3137.5,3137.4,0.1084045]
[1738142325094,3.18725,3137.5,3137.1,0.555]
[1738142325295,3.18725,3137.5,3137.4,0.1084045]
[1738142325495,3.18742,3137.4,3137.1,0.555]
[1738142328416,3.18746,3137.3,3137.1,0.005]
[1738142329826,3.18733,3137.5,3137.1,0.005]
[1738142330030,3.18736,3137.4,3137.1,0.005]
[1738142330692,6.3744,3137.6,3137.1,0.005]
[1738142330919,0.7505,3137.8,3137.1,4.138909]
[1738142331105,3.18704,3137.7,3137.1,0.951319]
[1738142331306,3.7505,3137.8,3137.3,0.55]
[1738142331511,3.7505,3137.8,3137.3,3.73744]
[1738142331723,6.93746,3137.8,3137.3,3.73744]
[1738142332388,3.18584,3138.9,3137.3,3.73744]
[1738142332389,3.1868,3138.0,3137.5,0.55]
[1738142332997,3.1868,3138.0,3137.6,0.10501464]
[1738142333707,6.37363,3138.0,3137.6,0.10501464]
[1738142334515,3.1868,3138.0,3137.6,0.10501464]
[1738142337699,0.829,3138.1,3137.6,0.10501464]
[1738142337900,4.01571,3138.1,3137.6,0.10121378]
[1738142338137,3.18676,3138.0,3137.6,0.10121378]
[1738142340827,6.37357,3138.0,3137.6,0.10121378]
[1738142341029,3.18686,3137.9,3137.6,0.10121378]
[1738142342741,3.18676,3138.0,3137.6,0.10121378]
[1738142342901,3.18684,3137.9,3137.6,0.10121378]
[1738142343528,3.18629,3138.5,3137.8,0.8273]
[1738142343732,3.18629,3138.5,3138.0,3.1867]
[1738142343942,3.18635,3138.4,3137.9,3.84143945]
[1738142344101,3.1868,3138.0,3137.6,8.91]
[1738142344645,3.18664,3138.1,3137.6,8.91]
[1738142344809,3.18684,3137.9,3137.6,8.91]
[1738142345435,3.18664,3138.1,3137.7,0.10462056]
[1738142345663,3.18646,3138.3,3137.9,0.55]
[1738142345855,3.18646,3138.3,3138.0,0.10452097]
[1738142349352,3.18659,3138.2,3138.0,0.10452097]
[1738142349511,3.18664,3138.1,3138.0,0.10452097]
[1738142349713,3.18664,3138.1,3137.4,8.91]
[1738142349714,3.18701,3137.8,3137.4,8.91]
[1738142349935,3.18708,3137.7,3137.3,0.8021]
[1738142350241,3.18708,3137.7,3137.4,0.55]
[1738142350546,3.18701,3137.8,3137.4,0.55]
[1738142354211,3.18701,3137.8,3137.4,3.73734]
[1738142354407,3.18701,3137.8,3137.4,0.55]
[1738142356749,3.18701,3137.8,3137.4,3.73734]
[1738142357648,3.18679,3138.0,3137.4,4.748712]
[1738142357823,3.18679,3138.0,3137.5,3.18723]
[1738142358043,6.37361,3138.0,3137.5,3.18723]
[1738142358556,3.18679,3138.0,3137.5,3.18723]
[1738142358756,3.18679,3138.0,3137.6,0.833]
[1738142358956,6.3736,3138.0,3137.6,0.833]
[1738142359627,3.18679,3138.0,3137.6,0.833]
[1738142360462,6.37361,3138.0,3137.6,0.833]
[1738142360664,3.18679,3138.0,3137.6,0.833]
[1738142362668,3.18644,3138.3,3137.9,3.18684]
[1738142362833,3.18619,3138.6,3138.0,1.3048]
[1738142362834,3.98709,3138.6,3138.0,1.3048]
[1738142363165,2.474122,3139.3,3138.0,1.3048]
[1738142363166,3.98688,3138.8,3138.1,0.1045738]
[1738142363529,3.18603,3138.7,3138.2,3.18652]
[1738142363847,3.18603,3138.7,3138.3,0.10436535]
[1738142364170,3.18632,3138.5,3138.0,0.55]
[1738142364343,3.18632,3138.5,3138.4,0.10435904]
[1738142364538,0.8009,3138.4,3137.7,8.91]
[1738142364862,0.8009,3138.3,3137.7,8.91]
[1738142365025,3.98784,3137.8,3137.1,3.1926]
[1738142365227,3.1872,3137.6,3137.1,0.005]
[1738142365429,3.18735,3137.4,3137.1,0.005]
[1738142365870,3.58601,3137.6,3137.1,0.005]
[1738142366080,3.18727,3137.5,3137.1,0.005]
[1738142366742,3.18755,3137.2,3137.1,0.005]
[1738142366966,4.00015,3137.2,3137.1,0.005]
[1738142367633,4.00015,3137.2,3136.9,0.005]
[1738142367634,4.00035,3137.0,3136.9,0.005]
[1738142367834,9.474472,3137.0,3136.9,0.005]
[1738142368233,7.00035,3137.0,3136.9,0.005]
[1738142370836,6.18775,3137.0,3136.9,0.005]
[1738142371171,3.18775,3137.0,3136.9,0.005]
[1738142371367,3.18755,3137.2,3136.9,0.005]
[1738142371576,3.18772,3137.1,3136.9,0.09557214]
[1738142371874,3.18772,3137.1,3137.0,0.09057158]
[1738142373895,3.18772,3137.1,3136.9,0.005]
[1738142374073,3.18775,3137.0,3136.9,0.005]
[1738142374557,7.26827749,3137.0,3136.9,0.005]
[1738142374740,7.68506489,3137.0,3136.9,0.005]
[1738142375461,7.624297,3137.0,3136.9,0.005]
[1738142375669,7.624297,3137.0,3136.6,0.1618303]
[1738142375670,6.825297,3137.0,3136.6,3e-07]
[1738142375977,6.825297,3137.0,3136.1,0.005]
[1738142375978,6.98757,3136.2,3136.1,3e-07]
[1738142376135,8.005173,3136.2,3136.1,3e-07]
[1738142380162,5.005173,3136.2,3136.1,3e-07]
[1738142380365,3.18835,3136.5,3136.1,3e-07]
[1738142380567,3.18817,3136.6,3136.1,0.8310003]
[1738142380756,3.18817,3136.6,3136.2,0.07903897]
[1738142380955,3.82685127,3136.7,3136.2,0.07903897]
[1738142381256,3.18817,3136.6,3136.2,0.07903897]
[1738142381456,3.82685127,3136.7,3136.2,0.07903897]
[1738142381658,0.63874127,3136.7,3136.3,3.18846]
[1738142381861,0.63874127,3136.7,3136.4,0.0804385]
[1738142383465,3.18771,3137.1,3136.5,3.18826]
[1738142383672,3.18771,3137.1,3136.6,0.0804374]
[1738142384009,3.18776,3137.0,3136.6,0.0804374]
[1738142384291,3.18786,3136.9,3136.7,0.08043685]
[1738142384786,3.18786,3136.9,3136.8,0.08043629]
[1738142384982,6.37545,3137.1,3136.8,0.08043629]
[1738142385164,3.18778,3137.0,3136.4,3.73833]
[1738142385364,3.18778,3137.0,3136.9,0.08043574]
[1738142385577,3.18778,3137.0,3136.4,4.431005]
[1738142385578,3.18793,3136.9,3136.4,0.55]
[1738142385946,3.18796,3136.8,3136.4,0.55]
[1738142386579,3.18796,3136.8,3136.3,0.55]
[1738142386880,3.18796,3136.8,3136.3,3.73846]
[1738142387683,6.37565,3137.0,3136.3,3.73837]
[1738142387883,3.18789,3136.9,3136.4,0.55]
[1738142389089,3.18789,3136.9,3136.4,3.73833]
[1738142389689,3.0,3137.3,3136.6,0.55]
[1738142389892,3.18756,3137.2,3136.7,3.99185]
[1738142390891,3.18741,3137.4,3136.8,0.55]
[1738142391191,3.18741,3137.4,3136.8,4.19532285]
[1738142391411,3.18721,3137.6,3136.9,0.03187748]
[1738142391588,3.18721,3137.6,3137.1,3.18762]
[1738142391790,3.0,3137.7,3137.2,3.73755]
[1738142392160,0.64428613,3137.8,3137.4,0.7624]
[1738142392717,0.64428613,3137.8,3137.4,4.344715]
[1738142392860,3.0,3138.1,3137.5,0.07973476]
[1738142393371,3.18674,3138.0,3137.5,0.07973476]
[1738142393568,3.18674,3138.0,3137.5,3.26697476]
[1738142393788,3.18674,3138.0,3137.5,3.18724]
[1738142394090,3.0,3138.1,3137.6,0.0797342]
[1738142394296,6.1867,3138.1,3137.6,0.0797342]
[1738142395394,3.0,3138.1,3137.6,0.0797342]
[1738142395603,3.18675,3138.0,3137.6,0.0797342]
[1738142396961,3.18659,3138.2,3137.7,0.55]
[1738142397502,6.3728,3138.4,3137.8,0.07902997]
[1738142398276,3.18647,3138.3,3137.8,0.07902997]
[1738142398491,3.18638,3138.4,3137.8,0.07902997]
[1738142398692,3.18645,3138.3,3137.8,0.07902997]
[1738142398903,3.18638,3138.4,3137.8,3.26595997]
[1738142399819,3.18644,3138.3,3137.8,3.26595997]
[1738142400015,3.18662,3138.2,3137.8,0.07902997]
[1738142400169,3.18664,3138.1,3137.8,0.07902997]
[1738142400513,3.18662,3138.2,3137.8,0.07902997]
[1738142400869,3.18662,3138.2,3137.9,0.55]
[1738142401066,6.37325,3138.2,3138.0,0.07902886]
[1738142401418,3.18664,3138.1,3138.0,0.62902886]
[1738142401974,3.18648,3138.3,3138.0,0.62902886]
[1738142402236,3.18638,3138.4,3138.0,0.62902886]
[1738142402237,3.18638,3138.4,3138.1,0.55]
[1738142402432,3.18626,3138.5,3138.1,1.3494]
[1738142402701,3.18612,3138.7,3138.3,0.55]
[1738142403080,3.18612,3138.7,3138.4,0.07862335]
[1738142403303,3.81518858,3138.9,3138.4,0.07862335]
[1738142403479,3.81518858,3138.9,3138.5,0.55]
[1738142403877,3.81518858,3138.9,3138.6,0.07862225]
[1738142404128,6.37098,3139.3,3138.7,0.55]
[1738142404419,3.18562,3139.1,3138.8,0.07862114]
[1738142404620,0.716688,3139.2,3138.7,4.48903]
[1738142404915,0.63747128,3139.2,3138.9,0.07862059]
[1738142405067,3.82306128,3139.2,3139.0,0.07862004]
[1738142405265,3.18559,3139.2,3139.0,0.07862004]
[1738142405469,3.18559,3139.2,3138.7,4.48896]
[1738142405710,3.18534,3139.4,3139.1,0.07861949]
[1738142405869,0.937049,3139.4,3139.1,0.55]
[1738142406082,3.18533,3139.4,3139.1,0.55]
[1738142406274,3.18533,3139.4,3139.2,0.07822157]
[1738142406475,3.18542,3139.3,3139.2,0.07822157]
[1738142408422,3.18572,3139.1,3138.5,3.73622]
[1738142408623,3.18598,3138.8,3138.5,0.55]
[1738142408804,3.18598,3138.8,3138.6,0.07757411]
[1738142409004,3.18603,3138.7,3138.2,3.94769]
[1738142409513,3.95551,3138.9,3138.3,3.73635]
[1738142410080,3.18591,3138.9,3138.3,3.73635]
[1738142410281,3.18591,3138.9,3138.5,0.55]
[1738142410481,3.18582,3138.9,3138.5,0.55]
[1738142410677,3.822981,3138.9,3138.5,0.55]
[1738142410886,3.186,3138.8,3138.3,0.55]
[1738142411105,3.18604,3138.7,3138.3,0.55]
[1738142414318,7.008941,3138.9,3138.3,3.73643]
[1738142414740,3.823031,3138.9,3138.3,3.73643]
[1738142414901,3.18594,3138.8,3138.3,3.73643]
[1738142415827,3.18579,3139.0,3138.5,0.55]
[1738142417091,3.18567,3139.1,3138.5,0.55]
[1738142417299,3.18577,3139.0,3138.5,3.73622]
[1738142417487,3.18567,3139.1,3138.5,3.73617]
[1738142417688,3.83554047,3139.3,3138.7,0.55]
[1738142417883,3.83554047,3139.3,3138.9,0.55]
[1738142418101,0.65007047,3139.3,3138.9,3.18581]
[1738142419736,3.83551047,3139.3,3138.8,3.73591]
[1738142421231,3.83551047,3139.3,3138.7,0.55]
[1738142421436,3.18554,3139.2,3138.7,3.736]
[1738142422306,3.83551047,3139.3,3138.7,3.736]
[1738142422835,3.83551047,3139.3,3138.9,0.55]
[1738142423336,3.83551047,3139.3,3139.0,0.07752011]
[1738142423538,3.18438,3140.4,3139.0,0.07752011]
[1738142423539,3.18502,3139.7,3139.3,0.55]
[1738142423718,3.0,3139.6,3139.3,0.55]
[1738142424036,3.18486,3139.9,3139.4,0.07754093]
[1738142424334,6.36959,3140.0,3139.5,0.55]
[1738142424540,3.18483,3139.9,3139.6,0.077465]
[1738142424904,3.18456,3140.2,3139.6,0.077465]
[1738142425167,3.18467,3140.1,3139.7,0.8274]
[1738142425505,6.18467,3140.1,3139.8,0.07746389]
[1738142425722,3.18441,3140.3,3139.8,0.55]
[1738142425959,6.36872,3140.4,3139.9,0.07720435]
[1738142426246,3.18442,3140.3,3139.9,0.07720435]
[1738142427112,3.18433,3140.4,3139.9,0.07720435]
[1738142427318,3.18469,3140.1,3139.9,0.07720435]
[1738142427746,3.18457,3140.2,3139.9,0.07720435]
[1738142428349,3.18435,3140.4,3139.9,0.07720435]
[1738142428549,3.18446,3140.3,3139.9,0.07720435]
[1738142428863,3.18435,3140.4,3140.0,0.55]
[1738142429018,3.18442,3140.3,3140.0,0.55]